fUSD/lending_fUSD_20250618
["ID","MTS","AMOUNT","RATE_DAILY","PERIOD"]
[366410019,1750235436758,-490.0,0.00016438,2]
[366410020,1750235436768,-490.0,0.00016438,2]
[366410021,1750235436778,-490.0,0.00016438,2]
[366410022,1750235436787,-499.81602127,0.00016438,2]
[366410023,1750235436797,-490.0,0.00016438,2]
[366410024,1750235436806,-1134.47,0.00016438,2]
[366410025,1750235436816,-490.0,0.00016438,2]
[366410026,1750235436826,-490.0,0.00016438,2]
[366410027,1750235436836,-508.05,0.00016438,2]
[366410028,1750235436847,-540.1,0.00016438,2]
[366410029,1750235436856,-490.0,0.00016438,2]
[366410030,1750235436867,-575.86,0.00016438,2]
[366410031,1750235436878,-539.51,0.00016438,2]
[366410032,1750235436887,-490.0,0.00016438,2]
[366410033,1750235436897,-461.31845098,0.00016438,2]
[366410034,1750235436907,-505.39359749,0.00016438,2]
[366410035,1750235436917,-496.92052329,0.00016438,2]
[366410036,1750235436926,-548.51,0.00016438,2]
[366410037,1750235436935,-2356.87,0.00016438,2]
[366410038,1750235436944,-490.0,0.00016438,2]
[366410039,1750235436954,-511.59,0.00016438,2]
[366410040,1750235436964,-490.0,0.00016438,2]
[366410041,1750235436974,-1550.54,0.00016438,2]
[366410042,1750235436984,-590.01,0.00016438,2]
[366410043,1750235436994,-227.35932339,0.00016438,2]
[366410044,1750235437004,-496.64558927,0.00016438,2]
[366410045,1750235437013,-496.09,0.00016438,2]
[366410046,1750235437023,-2532.14,0.00016438,2]
[366410047,1750235437034,-505.26074291,0.00016438,2]
[366410048,1750235437043,-599.68,0.00016438,2]
[366410049,1750235437053,-507.5013786,0.00016438,2]
[366410050,1750235437063,-1387.6,0.00016438,2]
[366410051,1750235437072,-490.0,0.00016438,2]
[366410052,1750235437081,-490.0,0.00016438,2]
[366410053,1750235437091,-490.0,0.00016438,2]
[366410054,1750235437105,-584.05436161,0.00016438,2]
[366410055,1750235437115,-720.46,0.00016438,2]
[366410056,1750235437124,-491.60441273,0.00016438,2]
[366410057,1750235437133,-490.0,0.00016438,2]
[366410058,1750235437144,-490.0,0.00016438,2]
[366410059,1750235437153,-672.62,0.00016438,2]
[366410060,1750235437164,-492.44494609,0.00016438,2]
[366410061,1750235437174,-490.0,0.00016438,2]
[366410062,1750235437184,-594.16,0.00016438,2]
[366410063,1750235437194,-490.0,0.00016438,2]
[366410064,1750235437204,-490.0,0.00016438,2]
[366410065,1750235437213,-510.90969628,0.00016438,2]
[366410066,1750235437223,-848.59610516,0.00016438,2]
[366410067,1750235437740,-72.92389484,0.00016438,2]
[366410068,1750235437750,-527.4,0.00016438,2]
[366410069,1750235437760,-1511.95,0.00016438,2]
[366410070,1750235437769,-490.0,0.00016438,2]
[366410071,1750235437779,-579.21,0.00016438,2]
[366410072,1750235437789,-490.0,0.00016438,2]
[366410073,1750235437800,-490.0,0.00016438,2]
[366410074,1750235437809,-915.5,0.00016438,2]
[366410075,1750235437819,-1133.87,0.00016438,2]
[366410076,1750235437828,-1238.45,0.00016438,2]
[366410077,1750235437837,-536.92,0.00016438,2]
[366410078,1750235437847,-490.0,0.00016438,2]
[366410079,1750235437856,-1638.58,0.00016438,2]
[366410080,1750235437867,-490.0,0.00016438,2]
[366410081,1750235437876,-490.0,0.00016438,2]
[366410082,1750235437885,-2150.98,0.00016438,2]
[366410083,1750235437895,-865.75,0.00016438,2]
[366410084,1750235437904,-490.0,0.00016438,2]
[366410085,1750235437913,-1180.66,0.00016438,2]
[366410086,1750235437923,-490.0,0.00016438,2]
[366410087,1750235437933,-490.0,0.00016438,2]
[366410088,1750235437942,-847.48,0.00016438,2]
[366410089,1750235437952,-771.58,0.00016438,2]
[366410090,1750235437961,-490.0,0.00016438,2]
[366410091,1750235437970,-543.78,0.00016438,2]
[366410092,1750235437980,-1041.29,0.00016438,2]
[366410093,1750235437990,-490.0,0.00016438,2]
[366410094,1750235438000,-490.0,0.00016438,2]
[366410095,1750235438009,-490.0,0.00016438,2]
[366410096,1750235438019,-490.0,0.00016438,2]
[366410098,1750235438029,-490.0,0.00016438,2]
[366410099,1750235438038,-490.0,0.00016438,2]
[366410100,1750235438048,-1324.29,0.00016438,2]
[366410101,1750235438058,-176.71538139,0.00016438,2]
[366410102,1750235438068,-490.0,0.00016438,2]
[366410104,1750235438077,-188.50894502,0.00016438,2]
[366410105,1750235438087,-490.0,0.00016438,2]
[366410107,1750235438100,-1025.35,0.00016438,2]
[366410109,1750235438110,-490.0,0.00016438,2]
[366410110,1750235438123,-376.27086257,0.00016438,2]
[366410111,1750235438132,-490.0,0.00016438,2]
[366410112,1750235438141,-490.0,0.00016438,2]
[366410113,1750235438151,-2163.17,0.00016438,2]
[366410114,1750235438160,-490.0,0.00016438,2]
[366410115,1750235438169,-1129.44,0.00016438,2]
[366410116,1750235438179,-490.0,0.00016438,2]
[366410117,1750235438189,-602.08,0.00016438,2]
[366410118,1750235438199,-490.0,0.00016438,2]
[366410119,1750235438208,-490.0,0.00016438,2]
[366410120,1750235438217,-490.0,0.00016438,2]
[366410121,1750235438227,-490.0,0.00016438,2]
[366410122,1750235438238,-490.0,0.00016438,2]
[366410123,1750235438247,-797.56,0.00016438,2]
[366410124,1750235438257,-490.0,0.00016438,2]
[366410125,1750235438266,-490.0,0.00016438,2]
[366410126,1750235438275,-1655.19,0.00016438,2]
[366410127,1750235438284,-490.0,0.00016438,2]
[366410128,1750235438408,-1066.8,0.00016438,2]
[366410129,1750235438418,-490.0,0.00016438,2]
[366410130,1750235438428,-2009.7,0.00016438,2]
[366410131,1750235438437,-490.0,0.00016438,2]
[366410132,1750235438446,-1495.9,0.00016438,2]
[366410133,1750235438456,-490.0,0.00016438,2]
[366410134,1750235438465,-490.0,0.00016438,2]
[366410135,1750235438475,-1333.96,0.00016438,2]
[366410136,1750235438484,-721.26,0.00016438,2]
[366410137,1750235438494,-490.0,0.00016438,2]
[366410138,1750235438504,-1043.69,0.00016438,2]
[366410139,1750235438513,-2015.5,0.00016438,2]
[366410140,1750235438523,-490.0,0.00016438,2]
[366410141,1750235438533,-711.7,0.00016438,2]
[366410143,1750235438543,-544.44,0.00016438,2]
[366410145,1750235438552,-490.0,0.00016438,2]
[366410147,1750235438562,-490.0,0.00016438,2]
[366410148,1750235438572,-490.0,0.00016438,2]
[366410149,1750235438581,-930.93,0.00016438,2]
[366410150,1750235438591,-641.17,0.00016438,2]
[366410151,1750235438601,-490.0,0.00016438,2]
[366410152,1750235438611,-554.53,0.00016438,2]
[366410153,1750235438621,-490.0,0.00016438,2]
[366410154,1750235438631,-490.0,0.00016438,2]
[366410155,1750235438641,-490.0,0.00016438,2]
[366410156,1750235438651,-1240.44,0.00016438,2]
[366410157,1750235438660,-1980.59,0.00016438,2]
[366410159,1750235438669,-490.0,0.00016438,2]
[366410161,1750235438679,-572.52,0.00016438,2]
[366410164,1750235438688,-1495.37,0.00016438,2]
[366410167,1750235438697,-634.71,0.00016438,2]
[366410169,1750235438707,-499.97,0.00016438,2]
[366410171,1750235438716,-490.0,0.00016438,2]
[366410173,1750235438726,-490.0,0.00016438,2]
[366410175,1750235438735,-595.39,0.00016438,2]
[366410177,1750235438745,-368.24734254,0.00016438,2]
[366410179,1750235438755,-1163.36,0.00016438,2]
[366410182,1750235438764,-872.01,0.00016438,2]
[366410184,1750235438774,-465.691636,0.00016438,2]
[366410186,1750235438783,-1453.29,0.00016438,2]
[366410188,1750235438793,-555.79130093,0.00016438,2]
[366410190,1750235438804,-723.53,0.00016438,2]
[366410192,1750235438814,-490.0,0.00016438,2]
[366410194,1750235438823,-490.0,0.00016438,2]
[366410196,1750235438832,-490.0,0.00016438,2]
[366410198,1750235438841,-450.53121152,0.00016438,2]
[366410200,1750235438852,-557.46,0.00016438,2]
[366410202,1750235438863,-490.0,0.00016438,2]
[366410204,1750235438872,-155.84472599,0.00016438,2]
[366410206,1750235438881,-645.05,0.00016438,2]
[366410208,1750235438890,-491.62608786,0.00016438,2]
[366410210,1750235438900,-608.07,0.00016438,2]
[366410212,1750235438909,-1114.88,0.00016438,2]
[366410214,1750235438919,-596.75,0.00016438,2]
[366410216,1750235438928,-538.59,0.00016438,2]
[366410218,1750235438938,-445.80861116,0.00016438,2]
[366410224,1750235438984,-44.19138884,0.00016438,2]
[366410226,1750235438994,-881.33,0.00016438,2]
[366410228,1750235439003,-1053.97,0.00016438,2]
[366410230,1750235439013,-490.0,0.00016438,2]
[366410232,1750235439023,-267.79239499,0.00016438,2]
[366410234,1750235439035,-222.20760501,0.00016438,2]
[366410236,1750235439044,-490.0,0.00016438,2]
[366410238,1750235439053,-390.0,0.00016438,2]
[366410240,1750235439062,-490.0,0.00016438,2]
[366410242,1750235439072,-490.0,0.00016438,2]
[366410244,1750235439081,-490.0,0.00016438,2]
[366410246,1750235439091,-490.0,0.00016438,2]
[366410248,1750235439103,-490.0,0.00016438,2]
[366410250,1750235439112,-1555.61,0.00016438,2]
[366410252,1750235439121,-490.0,0.00016438,2]
[366410254,1750235439130,-1669.7,0.00016438,2]
[366410256,1750235439140,-755.39,0.00016438,2]
[366410258,1750235439149,-1752.1,0.00016438,2]
[366410260,1750235439158,-490.0,0.00016438,2]
[366410262,1750235439168,-490.0,0.00016438,2]
[366410264,1750235439177,-1314.28,0.00016438,2]
[366410266,1750235439186,-490.0,0.00016438,2]
[366410268,1750235439196,-1038.76,0.00016438,2]
[366410270,1750235439205,-931.34,0.00016438,2]
[366410272,1750235439214,-1422.85,0.00016438,2]
[366410274,1750235439224,-490.0,0.00016438,2]
[366410276,1750235439234,-490.0,0.00016438,2]
[366410279,1750235439243,-1276.86,0.00016438,2]
[366410281,1750235439253,-490.0,0.00016438,2]
[366410283,1750235439262,-7191.79,0.00016438,2]
[366410285,1750235439272,-1764.47,0.00016438,2]
[366410287,1750235439281,-490.0,0.00016438,2]
[366410289,1750235439291,-1158.4,0.00016438,2]
[366410291,1750235439300,-1327.86,0.00016438,2]
[366410293,1750235439309,-529.42,0.00016438,2]
[366410295,1750235439318,-3738.86,0.00016438,2]
[366410297,1750235439327,-1568.17,0.00016438,2]
[366410298,1750235439336,-490.0,0.00016438,2]
[366410301,1750235439345,-1294.48,0.00016438,2]
[366410303,1750235439355,-490.0,0.00016438,2]
[366410305,1750235439365,-490.0,0.00016438,2]
[366410307,1750235439374,-490.0,0.00016438,2]
[366410309,1750235439384,-490.0,0.00016438,2]
[366410311,1750235439393,-1962.09,0.00016438,2]
[366410313,1750235439403,-1087.4,0.00016438,2]
[366410315,1750235439412,-490.0,0.00016438,2]
[366410317,1750235439422,-563.45,0.00016438,2]
[366410319,1750235439431,-521.65,0.00016438,2]
[366410321,1750235439441,-2834.95,0.00016438,2]
[366410323,1750235439451,-521.65,0.00016438,2]
[366410325,1750235439460,-521.65,0.00016438,2]
[366410327,1750235439470,-1388.0,0.00016438,2]
[366410329,1750235439480,-521.65,0.00016438,2]
[366410331,1750235439489,-521.65,0.00016438,2]
[366410333,1750235439498,-521.65,0.00016438,2]
[366410335,1750235439508,-521.65,0.00016438,2]
[366410337,1750235439517,-1053.53,0.00016438,2]
[366410339,1750235439526,-521.65,0.00016438,2]
[366410341,1750235439536,-490.0,0.00016438,2]
[366410343,1750235439545,-490.0,0.00016438,2]
[366410345,1750235439554,-490.0,0.00016438,2]
[366410347,1750235439564,-779.4,0.00016438,2]
[366410349,1750235439573,-490.0,0.00016438,2]
[366410351,1750235439584,-2218.34,0.00016438,2]
[366410353,1750235439594,-490.0,0.00016438,2]
[366410355,1750235439603,-646.73,0.00016438,2]
[366410357,1750235439614,-176.20201863,0.00016438,2]
[366410359,1750235439624,-490.0,0.00016438,2]
[366410361,1750235439634,-1094.85,0.00016438,2]
[366410364,1750235439644,-490.0,0.00016438,2]
[366410366,1750235439654,-3536.82,0.00016438,2]
[366410368,1750235439664,-490.0,0.00016438,2]
[366410370,1750235439674,-1313.98,0.00016438,2]
[366410372,1750235439683,-490.0,0.00016438,2]
[366410374,1750235439692,-490.0,0.00016438,2]
[366410376,1750235439702,-490.0,0.00016438,2]
[366410377,1750235439711,-164.4559289,0.00016438,2]
[366410378,1750235439721,-1026.1,0.00016438,2]
[366410379,1750235439731,-3596.04929834,0.00016438,2]
[366410608,1750235441947,-1631.0,0.00015358,2]
[366410610,1750235441959,-140.47035424,0.00015358,2]
[366410612,1750235441969,-806.89876755,0.00016438,2]
[366410615,1750235441985,-1570.70831661,0.00016438,2]
[366410617,1750235441997,-2615.92995068,0.00016438,2]
[366410619,1750235442008,-747.72575256,0.00016438,2]
[366410621,1750235442020,-7579.35791426,0.00016438,2]
[366410623,1750235442030,-1582.37,0.00016438,2]
[366410625,1750235442040,-665.70092708,0.00016438,2]
[366410627,1750235442051,-895.73907292,0.00016438,2]
[366410629,1750235442061,-574.76,0.00016438,2]
[366410630,1750235442071,-1116.7,0.00016438,2]
[366410631,1750235442080,-3181.34,0.00016438,2]
[366410632,1750235442091,-1855.63,0.00016438,2]
[366410633,1750235442107,-490.0,0.00016438,2]
[366410634,1750235442117,-723.28,0.00016438,2]
[366410635,1750235442127,-490.0,0.00016438,2]
[366410636,1750235442137,-1410.54,0.00016438,2]
[366410637,1750235442146,-799.8,0.00016438,2]
[366410639,1750235442156,-490.0,0.00016438,2]
[366410641,1750235442166,-15365.61,0.00016438,2]
[366410643,1750235442175,-490.0,0.00016438,2]
[366410645,1750235442185,-4122.23,0.00016438,2]
[366410647,1750235442194,-491.5898332,0.00016438,2]
[366410649,1750235442204,-519.92,0.00016438,2]
[366410651,1750235442213,-580.06,0.00016438,2]
[366410653,1750235442223,-2775.6,0.00016438,2]
[366410655,1750235442232,-704.76,0.00016438,2]
[366410657,1750235442242,-650.91,0.00016438,2]
[366410659,1750235442251,-6472.91,0.00016438,2]
[366410661,1750235442261,-7375.25,0.00016438,2]
[366410663,1750235442270,-492.77010077,0.00016438,2]
[366410665,1750235442280,-490.0,0.00016438,2]
[366410667,1750235442289,-490.0,0.00016438,2]
[366410669,1750235442298,-639.61,0.00016438,2]
[366410671,1750235442308,-490.0,0.00016438,2]
[366410673,1750235442317,-873.62,0.00016438,2]
[366410675,1750235442326,-1215.76,0.00016438,2]
[366410677,1750235442336,-535.07,0.00016438,2]
[366410679,1750235442345,-490.0,0.00016438,2]
[366410681,1750235442356,-1442.5,0.00016438,2]
[366410684,1750235442365,-507.04725455,0.00016438,2]
[366410686,1750235442375,-2643.57,0.00016438,2]
[366410688,1750235442384,-166.09598375,0.00016438,2]
[366410690,1750235442394,-490.0,0.00016438,2]
[366410692,1750235442403,-7324.69,0.00016438,2]
[366410694,1750235442412,-860.11,0.00016438,2]
[366410696,1750235442421,-984.24,0.00016438,2]
[366410698,1750235442430,-902.27,0.00016438,2]
[366410700,1750235442439,-7023.01,0.00016438,2]
[366410701,1750235442449,-490.0,0.00016438,2]
[366410703,1750235442458,-490.0,0.00016438,2]
[366410705,1750235442467,-490.0,0.00016438,2]
[366410708,1750235442477,-490.0,0.00016438,2]
[366410710,1750235442486,-490.0,0.00016438,2]
[366410712,1750235442496,-490.0,0.00016438,2]
[366410714,1750235442506,-490.0,0.00016438,2]
[366410716,1750235442517,-1644.06,0.00016438,2]
[366410718,1750235442526,-490.0,0.00016438,2]
[366410720,1750235442535,-490.0,0.00016438,2]
[366410722,1750235442545,-1972.65,0.00016438,2]
[366410724,1750235442554,-5801.91,0.00016438,2]
[366410726,1750235442563,-1125.78,0.00016438,2]
[366410728,1750235442573,-592.04,0.00016438,2]
[366410730,1750235442582,-1158.11,0.00016438,2]
[366410732,1750235442591,-1542.13,0.00016438,2]
[366410734,1750235442600,-1668.43,0.00016438,2]
[366410736,1750235442610,-490.0,0.00016438,2]
[366410738,1750235442621,-5217.89775481,0.00016438,2]
[366410743,1750235442657,-664.77224519,0.00016438,2]
[366410745,1750235442666,-1199.34,0.00016438,2]
[366410747,1750235442676,-490.0,0.00016438,2]
[366410749,1750235442685,-8185.97023743,0.00016438,2]
[366410752,1750235442697,-834.40804546,0.00016438,2]
[366410792,1750235443073,-913.76378646,0.00016438,2]
[366410796,1750235443093,-764.745945,0.00016438,2]
[366410798,1750235443109,-2289.89198565,0.00016438,2]
[366410800,1750235443119,-490.0,0.00016438,2]
[366410802,1750235443129,-616.91,0.00016438,2]
[366410804,1750235443139,-1730.59,0.00016438,2]
[366410806,1750235443150,-269.5945995,0.00016438,2]
[366410808,1750235443160,-2811.0,0.00016438,2]
[366410810,1750235443169,-3345.9,0.00016438,2]
[366410812,1750235443180,-1374.93587546,0.00016438,2]
[366410824,1750235443266,-694.83412454,0.00016438,2]
[366410827,1750235443277,-2145.6,0.00016438,2]
[366410830,1750235443287,-3058.15,0.00016438,2]
[366410833,1750235443297,-666.37,0.00016438,2]
[366410835,1750235443307,-490.0,0.00016438,2]
[366410837,1750235443316,-1573.0,0.00016438,2]
[366410839,1750235443326,-490.0,0.00016438,2]
[366410841,1750235443335,-2566.53,0.00016438,2]
[366410843,1750235443346,-490.0,0.00016438,2]
[366410845,1750235443356,-920.79,0.00016438,2]
[366410847,1750235443366,-4077.64,0.00016438,2]
[366410849,1750235443375,-2197.65958767,0.00016438,2]
[366410852,1750235443387,-1619.59041233,0.00016438,2]
[366410854,1750235443396,-2505.3,0.00016438,2]
[366410856,1750235443406,-849.74,0.00016438,2]
[366410858,1750235443417,-2322.42,0.00016438,2]
[366410860,1750235443427,-5580.16,0.00016438,2]
[366410862,1750235443437,-490.0,0.00016438,2]
[366410865,1750235443452,-490.0,0.00016438,2]
[366410867,1750235443462,-448.2336784,0.00016438,2]
[366410869,1750235443471,-490.0,0.00016438,2]
[366410871,1750235443481,-495.10443526,0.00016438,2]
[366410873,1750235443490,-1409.96,0.00016438,2]
[366410875,1750235443499,-684.04,0.00016438,2]
[366410877,1750235443509,-1263.92,0.00016438,2]
[366410878,1750235443518,-490.0,0.00016438,2]
[366410880,1750235443527,-3630.96,0.00016438,2]
[366410882,1750235443537,-490.0,0.00016438,2]
[366410884,1750235443546,-442.48817943,0.00016438,2]
[366410887,1750235443556,-1000.0,0.00016438,2]
[366410889,1750235443568,-1057.81,0.00016438,2]
[366410891,1750235443578,-2041.75,0.00016438,2]
[366410893,1750235443588,-4538.3,0.00016438,2]
[366410895,1750235443598,-490.0,0.00016438,2]
[366410897,1750235443607,-2208.22,0.00016438,2]
[366410899,1750235443616,-901.48,0.00016438,2]
[366410901,1750235443626,-1624.69,0.00016438,2]
[366410903,1750235443635,-1192.73,0.00016438,2]
[366410905,1750235443644,-1305.08,0.00016438,2]
[366410907,1750235443653,-2089.41,0.00016438,2]
[366410909,1750235443663,-496.28,0.00016438,2]
[366410911,1750235443672,-1074.47,0.00016438,2]
[366410913,1750235443682,-600.08,0.00016438,2]
[366410915,1750235443691,-575.73,0.00016438,2]
[366410917,1750235443700,-479.08044838,0.00016438,2]
[366410919,1750235443710,-193.54715934,0.00016438,2]
[366410930,1750235443810,-346.9870173,0.00016438,2]
[366410932,1750235443821,-1477.86582336,0.00016438,2]
[366410934,1750235443831,-777.12,0.00016438,2]
[366410936,1750235443840,-490.0,0.00016438,2]
[366410938,1750235443850,-490.0,0.00016438,2]
[366410940,1750235443860,-869.38,0.00016438,2]
[366410942,1750235443870,-1623.73,0.00016438,2]
[366410944,1750235443880,-490.0,0.00016438,2]
[366410946,1750235443890,-1012.05053793,0.00016438,2]
[366410977,1750235444183,201.0,0.00012888,2]
[366411010,1750235444567,-586.91959529,0.00016438,2]
[366411012,1750235444583,-101.29986678,0.00016438,2]
[366411015,1750235444596,-380.12465585,0.00016438,2]
[366411023,1750235444667,-300.42878841,0.00016438,2]
[366411028,1750235444705,-789.2675367,0.00016438,2]
[366411031,1750235444720,-221.33901904,0.00016438,2]
[366411033,1750235444733,-1026.85,0.00016438,2]
[366411036,1750235444747,-1043.3,0.00016438,2]
[366411038,1750235444760,-2396.41,0.00016438,2]
[366411040,1750235444772,-2943.41,0.00016438,2]
[366411043,1750235444785,-651.68,0.00016438,2]
[366411045,1750235444799,-859.28,0.00016438,2]
[366411048,1750235444812,-2579.3,0.00016438,2]
[366411050,1750235444826,-500.0,0.00016438,2]
[366411052,1750235444838,-500.0,0.00016438,2]
[366411055,1750235444850,-500.0,0.00016438,2]
[366411057,1750235444863,-995.48,0.00016438,2]
[366411059,1750235444877,-959.39,0.00016438,2]
[366411062,1750235444892,-535.21,0.00016438,2]
[366411064,1750235444904,-1727.5439835,0.00016438,2]
[366411067,1750235444919,-1193.9060165,0.00016438,2]
[366411069,1750235444932,-7732.17,0.00016438,2]
[366411071,1750235444943,-3450.53,0.00016438,2]
[366411074,1750235444954,-419.47429114,0.00016438,2]
[366411076,1750235444966,-490.0,0.00016438,2]
[366411078,1750235444980,-1668.98,0.00016438,2]
[366411081,1750235444993,-2621.68,0.00016438,2]
[366411083,1750235445005,-490.0,0.00016438,2]
[366411085,1750235445016,-1857.7,0.00016438,2]
[366411087,1750235445029,-75.55969236,0.00016438,2]
[366411090,1750235445047,-1372.68791042,0.00016438,2]
[366411398,1750235455593,-556.3898016,0.00016438,2]
[366411399,1750235455608,-4465.77259562,0.00016438,2]
[366411400,1750235455618,-490.0,0.00016438,2]
[366411401,1750235455626,-420.67326038,0.00016438,2]
[366411402,1750235455639,-728.39673962,0.00016438,2]
[366411403,1750235455647,-1972.14,0.00016438,2]
[366411404,1750235455656,-672.9,0.00016438,2]
[366411405,1750235455665,-1035.9892835,0.00016438,2]
[366411406,1750235455684,-1162.5907165,0.00016438,2]
[366411407,1750235455693,-725.73,0.00016438,2]
[366411408,1750235455702,-490.0,0.00016438,2]
[366411409,1750235455711,-490.0,0.00016438,2]
[366411410,1750235455720,-582.05,0.00016438,2]
[366411411,1750235455729,-737.31,0.00016438,2]
[366411412,1750235455738,-490.0,0.00016438,2]
[366411413,1750235455747,-2179.82,0.00016438,2]
[366411414,1750235455756,-1648.13,0.00016438,2]
[366411415,1750235455766,-4622.39,0.00016438,2]
[366411416,1750235455775,-3737.45,0.00016438,2]
[366411417,1750235455784,-490.0,0.00016438,2]
[366411418,1750235455793,-1204.96,0.00016438,2]
[366411419,1750235455802,-490.0,0.00016438,2]
[366411420,1750235455812,-1005.31,0.00016438,2]
[366411421,1750235455821,-490.0,0.00016438,2]
[366411422,1750235455830,-158.13213046,0.00016438,2]
[366411423,1750235455842,-596.11786954,0.00016438,2]
[366411424,1750235455851,-131.82055395,0.00016438,2]
[366411425,1750235455862,-653.14153045,0.00016438,2]
[366411426,1750235455873,-2578.5479156,0.00016438,2]
[366411427,1750235455883,-1652.29,0.00016438,2]
[366411428,1750235455892,-2500.12,0.00016438,2]
[366411429,1750235455902,-721.22,0.00016438,2]
[366411430,1750235455911,-5365.4689255,0.00016438,2]
[366411431,1750235455923,-1378.4710745,0.00016438,2]
[366411432,1750235455933,-804.4,0.00016438,2]
[366411433,1750235455945,-892.62,0.00016438,2]
[366411434,1750235455955,-824.1089255,0.00016438,2]
[366411435,1750235455967,-23.5710745,0.00016438,2]
[366411436,1750235455976,-893.93,0.00016438,2]
[366411437,1750235455986,-366.5389255,0.00016438,2]
[366411438,1750235455998,-1850.7145572,0.00016438,2]
[366411439,1750235456920,-3991.0965173,0.00016438,2]
[366411440,1750235456930,-490.0,0.00016438,2]
[366411441,1750235456938,-490.0,0.00016438,2]
[366411442,1750235456947,-1213.7,0.00016438,2]
[366411443,1750235456956,-1314.19,0.00016438,2]
[366411444,1750235456965,-1653.28,0.00016438,2]
[366411445,1750235456975,-3295.18,0.00016438,2]
[366411446,1750235456984,-4815.19,0.00016438,2]
[366411447,1750235456994,-490.0,0.00016438,2]
[366411448,1750235457003,-490.0,0.00016438,2]
[366411449,1750235457013,-4398.89,0.00016438,2]
[366411450,1750235457022,-490.0,0.00016438,2]
[366411451,1750235457031,-2774.1,0.00016438,2]
[366411452,1750235457040,-963.7,0.00016438,2]
[366411453,1750235457050,-524.41,0.00016438,2]
[366411454,1750235457059,-1117.37,0.00016438,2]
[366411455,1750235457069,-1180.48,0.00016438,2]
[366411456,1750235457078,-781.29,0.00016438,2]
[366411457,1750235457087,-2798.16,0.00016438,2]
[366411458,1750235457097,-1030.76,0.00016438,2]
[366411459,1750235457109,-1371.55,0.00016438,2]
[366411460,1750235457119,-4085.63,0.00016438,2]
[366411461,1750235457128,-690.85,0.00016438,2]
[366411462,1750235457137,-491.74,0.00016438,2]
[366411463,1750235457146,-655.56,0.00016438,2]
[366411464,1750235457154,-490.0,0.00016438,2]
[366411465,1750235457162,-490.0,0.00016438,2]
[366411466,1750235457170,-1366.86,0.00016438,2]
[366411467,1750235457178,-1211.5,0.00016438,2]
[366411468,1750235457187,-499.81,0.00016438,2]
[366411469,1750235457195,-490.0,0.00016438,2]
[366411470,1750235457204,-5132.95,0.00016438,2]
[366411471,1750235457213,-490.0,0.00016438,2]
[366411472,1750235457222,-472.19295119,0.00016438,2]
[366411473,1750235457231,-490.0,0.00016438,2]
[366411474,1750235457240,-490.0,0.00016438,2]
[366411475,1750235457249,-490.0,0.00016438,2]
[366411476,1750235457259,-12627.3360818,0.00016438,2]
[366411477,1750235457343,-619.76020313,0.00016438,2]
[366411478,1750235457366,-7492.63371507,0.00016438,2]
[366411479,1750235457375,-1021.11,0.00016438,2]
[366411480,1750235457385,-490.0,0.00016438,2]
[366411481,1750235457395,-1141.73,0.00016438,2]
[366411482,1750235457404,-490.0,0.00016438,2]
[366411483,1750235457413,-5576.94263442,0.00016438,2]
[366411484,1750235457453,-1658.92736558,0.00016438,2]
[366411485,1750235457463,-1352.21,0.00016438,2]
[366411486,1750235457472,-750.5,0.00016438,2]